Department family,Entity,Date,Expense type,Expense area,Supplier,Transaction number,Amount,Description,Supplier Post Code
Departmen of Health,NHS Business Services Authority,13/02/2018,Apprenticeship Levy,Corporate Services,HM REVENUE & CUSTOMS 948PX00194660,0050034362,"28,200.00",PAYE & NI JAN 18 M9,NE98 1ZZ
Departmen of Health,NHS Business Services Authority,13/02/2018,Statutory Payment,Statutory Payments,HM REVENUE & CUSTOMS 948PX00194660,0050034362,"1,281,561.44",PAYE & NI JAN 18 M9,NE98 1ZZ
Departmen of Health,NHS Business Services Authority,13/02/2018,Temporary Staff,Unclassified,CLICK TRAVEL LIMITED,0050034363,"108,485.60",JANUARY 2018 TRAVEL,B1 1TT
Departmen of Health,NHS Business Services Authority,23/02/2018,Ex Gratia Payments,Pensions Division,DR ELIZABETH PROCTER,0050034387,"45,389.02",SD52/050281 EX GRATIA PAYMENT,TN15 8NF
Departmen of Health,NHS Business Services Authority,23/02/2018,Statutory Payments,Statutory Payments,CABINET OFFICE CIVIL SERVICE PENSIONS,0050034391,"52,005.26",FEB2018,RG24 9NW
Departmen of Health,NHS Business Services Authority,09/02/2018,Query,Prescription Pricing Division,COMPAREX UK LTD,0080085981,"56,985.60",ITSM Tooling,HA1 1BH
Departmen of Health,NHS Business Services Authority,09/02/2018,Query,Prescription Pricing Division,COMPAREX UK LTD,0080086064,"170,886.48",ITSM Tooling,HA1 1BH
Departmen of Health,NHS Business Services Authority,02/02/2018,Postage Charges,Prescription Pricing Division,ROYAL MAIL,0080086847,"39,457.71",A/C 0912819049-EHIC UK,S49 1HQ
Departmen of Health,NHS Business Services Authority,02/02/2018,Postage Charges,Prescription Pricing Division,ROYAL MAIL,0080086848,"26,548.32",A/C 0912819048,S49 1HQ
Departmen of Health,NHS Business Services Authority,05/02/2018,Professional Fees,Corporate Services,GOVERNMENT ACTUARY'S DEPARTMENT,0080086919,"25,751.81",PERIOD END 31/12/17,EC4A 1AB
Departmen of Health,NHS Business Services Authority,13/02/2018,Postage Charges,Prescription Pricing Division,ROYAL MAIL,0080087069,"32,882.70",A/C 0912819049,S49 1HQ
Departmen of Health,NHS Business Services Authority,09/02/2018,Postage Charges,Prescription Pricing Division,ROYAL MAIL,0080087071,"28,988.38",A/C 0912819048,S49 1HQ
Departmen of Health,NHS Business Services Authority,09/02/2018,IT,Corporate Services,CAPITA BUSINESS SERVICES LTD,0080087092,"469,481.89",PCN DECEMBER 2017 CHARGES,DL1 9HN
Departmen of Health,NHS Business Services Authority,09/02/2018,Postage Charges,Dental Services Division,CAPITA BUSINESS SERVICES LTD,0080087092,"-3,750.00",POSTAGE CHARGES DEC2017,DL1 9HN
Departmen of Health,NHS Business Services Authority,09/02/2018,Managed Service Income,Project Pacific,CAPITA BUSINESS SERVICES LTD,0080087092,"-20,000.00",CENTRE CROSS CHRG DEC2017,DL1 9HN
Departmen of Health,NHS Business Services Authority,05/02/2018,PC Purchases,Prescription Pricing Division,CAPITA BUSINESS SERVICES LTD,0080087124,"127,319.95",Thinkpad USB 3.0 Pro Dock-UK,DL1 9HN
Departmen of Health,NHS Business Services Authority,05/02/2018,Query,Supply Chain Management Division,AKESO & COMPANY LIMITED,0080087128,"120,547.20",Category Tower 8 Transitional Cost,WC1A 2TH
Departmen of Health,NHS Business Services Authority,09/02/2018,Query,Supply Chain Management Division,LEEDS & YORK PARTNERSHIP NHS FT,0080087168,"110,631.54","Category Tower 11, Transitional",WF3 1WE
Departmen of Health,NHS Business Services Authority,23/02/2018,Postage Charges,Prescription Pricing Division,ROYAL MAIL,0080087172,"30,493.16",A/C 0912819048,S49 1HQ
Departmen of Health,NHS Business Services Authority,23/02/2018,Postage Charges,Prescription Pricing Division,ROYAL MAIL,0080087173,"34,708.64",A/C 0912819049-EHIC EU,S49 1HQ
Departmen of Health,NHS Business Services Authority,07/02/2018,Query,Supply Chain Management Division,AKESO & COMPANY LIMITED,0080087196,"120,547.20",Category Tower 8 Transitional Cost,WC1A 2TH
Departmen of Health,NHS Business Services Authority,09/02/2018,Query,Corporate Services,COMPASS SERVICES UK & IRELAND LTD,0080087220,"79,155.56",Soft FM Services contract - Stella,B45 9PZ
Departmen of Health,NHS Business Services Authority,09/02/2018,Query,Corporate Services,COMPASS SERVICES UK & IRELAND LTD,0080087221,"48,284.93",Soft FM Services contract - Hesketh,B45 9PZ
Departmen of Health,NHS Business Services Authority,09/02/2018,Temporary Staff,Pensions Division,CLAYBROOK COMPUTING LTD,0080087300,"24,000.00",Pensioner Payroll software development,RH10 1UH
Departmen of Health,NHS Business Services Authority,09/02/2018,Temporary Staff,Pensions Division,CLAYBROOK COMPUTING LTD,0080087301,"46,400.00",Pensioner Payroll IT Services to,RH10 1UH
Departmen of Health,NHS Business Services Authority,09/02/2018,Envision IT / IS,Pensions Division,PAYMASTER (1836) LTD,0080087308,"25,063.00",TRS Annual Refresh 2017,RH10 1UH
Departmen of Health,NHS Business Services Authority,09/02/2018,Temporary Staff,Pensions Division,PAYMASTER (1836) LTD,0080087312,"83,807.00",Annual Allowance - Changes to Compendia,RH10 1UH
Departmen of Health,NHS Business Services Authority,23/02/2018,Bank Charges,Prescription Pricing Division,ALLPAY LIMITED,0080087342,"27,699.73",DIRECT DEBITS,HR1 3SE
Departmen of Health,NHS Business Services Authority,13/02/2018,Telphone Charges,Corporate Services,CAPITA BUSINESS SERVICES LTD,0080087345,"197,438.55",MVS CALLS DEC17,DL1 9HN
Departmen of Health,NHS Business Services Authority,13/02/2018,Mobile Phones,NHS Protect,CAPITA BUSINESS SERVICES LTD,0080087345,"-21,660.94",NHSP TELEPHONY,DL1 9HN
Departmen of Health,NHS Business Services Authority,13/02/2018,Mobile Phones,Prescription Pricing Division,CAPITA BUSINESS SERVICES LTD,0080087345,"-2,384.86",CORPORATE TELEPHONY,DL1 9HN
Departmen of Health,NHS Business Services Authority,13/02/2018,Telphone Charges,Project Pacific,CAPITA BUSINESS SERVICES LTD,0080087345,"1,254.95",MVS CALLS DEC17,DL1 9HN
Departmen of Health,NHS Business Services Authority,13/02/2018,Query,Pensions Division,MEDIGOLD HEALTH CONSULTANCY,0080087346,"57,348.48",Medical Services being supplied by,NN4 7BF
Departmen of Health,NHS Business Services Authority,16/02/2018,Professional Fees,Prescription Pricing Division,BLOOM PROCUREMENT SERVICES LTD,0080087347,"48,000.00",,NE1 3DY
Departmen of Health,NHS Business Services Authority,13/02/2018,Professional Fees,Prescription Pricing Division,CAPITA BUSINESS SERVICES LTD,0080087351,"8,434.70",Rebrand Payment Portals,DL1 9HN
Departmen of Health,NHS Business Services Authority,13/02/2018,Professional Fees,Project Pacific,CAPITA BUSINESS SERVICES LTD,0080087351,"62,755.14",CSS Project Management - Senior,DL1 9HN
Departmen of Health,NHS Business Services Authority,23/02/2018,Postage Charges,Prescription Pricing Division,ROYAL MAIL,0080087455,"29,162.46",A/C 0912819048,S49 1HQ
Departmen of Health,NHS Business Services Authority,23/02/2018,Postage Charges,Prescription Pricing Division,ROYAL MAIL,0080087456,"41,089.28",A/C 0912819049-EHIC EU,S49 1HQ
Departmen of Health,NHS Business Services Authority,16/02/2018,Printing Charges (External),Prescription Pricing Division,THAMES CARD TECHNOLOGY LTD,0080087466,"34,122.91","Production, Personalization and",SS6 7UQ
Departmen of Health,NHS Business Services Authority,20/02/2018,Printing Charges (External),Prescription Pricing Division,THAMES CARD TECHNOLOGY LTD,0080087468,"22,554.75","Production, Personalization and",SS6 7UQ
Departmen of Health,NHS Business Services Authority,20/02/2018,Printing Charges (External),Prescription Pricing Division,XEROX UK LIMITED,0080087469,"25,448.55",Production and Delivery of HwHC forms,LS12 6NJ
Departmen of Health,NHS Business Services Authority,16/02/2018,Temporary Staff,Pensions Division,PAYMASTER (1836) LTD,0080087477,"38,093.90",Support Services to procure and provide,RH10 1UH
Departmen of Health,NHS Business Services Authority,16/02/2018,Printing Charges (External),Prescription Pricing Division,ALLIED PUB SVCS (MANCHESTER) LTD,0080087505,"25,839.22",Printing of monthly Drug Tariff editions,SK3 0ZP
Departmen of Health,NHS Business Services Authority,23/02/2018,Envision IT / IS,Pensions Division,PAYMASTER (1836) LTD,0080087554,"71,494.53",Provision of IT Support services for,RH10 1UH
Departmen of Health,NHS Business Services Authority,20/02/2018,Query,Corporate Services,FLEXIFORM,0080087597,"74,245.00",Out of hours Orangebox Deliveries,BD3 7AE
Departmen of Health,NHS Business Services Authority,20/02/2018,Professional Fees,Prescription Pricing Division,ACCENTURE UK LIMITED,0080087608,"38,834.40",Test Automation Engineer,EC3M 3BD
Departmen of Health,NHS Business Services Authority,23/02/2018,Temporary Staff,Pensions Division,VALTECH LTD,0080087613,"187,545.00",This order is for Discovery refresh and,N1 8AF
Departmen of Health,NHS Business Services Authority,23/02/2018,Temporary Staff,Pensions Division,VALTECH LTD,0080087615,"199,170.00",This order is for Discovery refresh and,N1 8AF
Departmen of Health,NHS Business Services Authority,23/02/2018,Temporary Staff,Pensions Division,VALTECH LTD,0080087618,"126,345.00",This order is for Discovery refresh and,N1 8AF
Departmen of Health,NHS Business Services Authority,20/02/2018,Software Licences,Prescription Pricing Division,INJIXO LTD,0080087629,"37,172.99",InVision Software Ltd (Injixo),B1 2JB
Departmen of Health,NHS Business Services Authority,23/02/2018,External Audit Fees,Corporate Services,NATIONAL AUDIT OFFICE,0080087666,"70,000.00",2017-2018,SW1W 9SP
Departmen of Health,NHS Business Services Authority,23/02/2018,Query,Supply Chain Management Division,LEEDS & YORK PARTNERSHIP NHS FT,0080087712,"110,631.54","Category Tower 11, Transitional",WF3 1WE
Departmen of Health,NHS Business Services Authority,23/02/2018,Query,Supply Chain Management Division,COLLABORATIVE PROCUREMENT PTNRS LLP,0080087715,"135,277.75",Category Tower 5 - Milestone 4,LS15 8ZB
Departmen of Health,NHS Business Services Authority,23/02/2018,Query,Supply Chain Management Division,COLLABORATIVE PROCUREMENT PTNRS LLP,0080087716,"98,385.78",Category Tower 4 - Milestone 4,LS15 8ZB
Departmen of Health,NHS Business Services Authority,23/02/2018,Query,Supply Chain Management Division,COLLABORATIVE PROCUREMENT PTNRS LLP,0080087717,"92,274.47",Category Tower 2 - Milestone 4,LS15 8ZB
Departmen of Health,NHS Business Services Authority,23/02/2018,Professional Fees,Prescription Pricing Division,ACCENTURE UK LIMITED,0080087777,"26,226.28",Back End Developer (Java),EC3M 3BD
Departmen of Health,NHS Business Services Authority,23/02/2018,Query,Pensions Division,VALTECH LTD,0080087805,"105,240.00","Discovery, Alpha and Beta delivery",N1 8AF
Departmen of Health,NHS Business Services Authority,01/02/2018,Dental Contractors,Dental Services ,,,"154,706,126.00",Payments to Dental Contractors,
Departmen of Health,NHS Business Services Authority,01/02/2018,Pensions Division,Pensions Division,,,"896,608.69",Payments to Pensioners,
Departmen of Health,NHS Business Services Authority,01/02/2018,Pharmacy Contractors,Prescription Pricing ,,,"103,405,826.10",Payments to Pharmacy Contractors,
Departmen of Health,NHS Business Services Authority,01/02/2018,Pharmacy Contractors,Prescription Pricing ,,,"715,613,910.21",Payments to Pharmacy Contractors,
Departmen of Health,NHS Business Services Authority,01/02/2018,Pharmacy Contractors,Prescription Pricing ,,,"4,983,358.54",Payments to Pharmacy Contractors,
Departmen of Health,NHS Business Services Authority,01/02/2018,Pharmacy Contractors,Prescription Pricing ,,,"410,304.67",Payments to Pharmacy Contractors,
Departmen of Health,NHS Business Services Authority,02/02/2018,Pharmacy Contractors,Prescription Pricing ,,,"657,006.91",Payments to Pharmacy Contractors,
Departmen of Health,NHS Business Services Authority,07/02/2018,Pharmacy Contractors,Prescription Pricing ,,,"670,107.96",Payments to Pharmacy Contractors,
Departmen of Health,NHS Business Services Authority,09/02/2018,Pharmacy Contractors,Prescription Pricing ,,,"43,979.50",Payments to Pharmacy Contractors,
Departmen of Health,NHS Business Services Authority,28/02/2018,Pharmacy Contractors,Prescription Pricing ,,,"-7,400,463.91",Payments to Pharmacy Contractors,
